{"text_format":"3","workbook":"xlsx","n_sheets":4,"sheets":["Început","Cheltuieli","Venit","Rezumat profit și pierderi"],"not_rendered":{"charts":1},"read":"whole","date_system":"1900"}

{"sheet":"Început","index":0,"n_rows":8,"n_cols":2,"rows_kept":8}
[null,"DESPRE ACEST ȘABLON"]
[null,"Utilizați acest registru de lucru Buget eveniment pentru a urmări cheltuielile efectuate pentru un eveniment și veniturile obținute în urma acestuia."]
[null,"Completați numele evenimentului și introduceți detaliile în tabelele din foile de lucru Cheltuieli și Venituri."]
[null,"Totalul cheltuielilor și Veniturile totale sunt calculate automat."]
[null,"Rezumatul pentru profit și pierderi și Diagrama sunt actualizate automat în foaia de lucru Rezumat Profit-Pierdere."]
[null,"Notă: "]
[null,"Găsiți instrucțiuni suplimentare în coloana A din fiecare foaie de lucru. Acest text a fost ascuns intenționat. Pentru a elimina textul, selectați coloana A, apoi selectați ȘTERGERE. "]
[null,"Pentru a afla mai multe despre tabele, apăsați SHIFT, apoi F10 într-un tabel, selectați opțiunea TABEL, apoi selectați TEXT ALTERNATIV"]

{"sheet":"Cheltuieli","index":1,"n_rows":32,"n_cols":8,"rows_kept":32,"merged":[[0,1,0,2],[0,3,0,4],[2,1,3,1]]}
["Introduceți cheltuielile estimate și reale pentru fiecare categorie în tabelele respective din această foaie de lucru și numele evenimentului în celula D1, pentru a personaliza titlul acestei foi de lucru și a altora. Subtitlul acestei foi de lucru se află în celula H1. Găsiți instrucțiuni utile despre cum să utilizați această foaie de lucru în celulele din această coloană. Următoarele instrucțiuni se află în celula A3.","Buget de eveniment pentru",null,"Nume eveniment",{"$nulls":3},"CHELTUIELI"]
[]
["Eticheta Cheltuieli totale se află în celula de la dreapta, eticheta Estimat în celula G3 și Real în H3.","TOTAL CHELTUIELI",{"$nulls":4},"Estimat","Real"]
["Cheltuielile totale estimate se află în celula G4 și cheltuielile totale reale din H4 sunt calculate automat. Următoarele instrucțiuni se află în celula A6.",{"$nulls":5},{"$f":"SUM(C11,C19,C25,C32,CheltuieliRăcoritoare[[#Totals],[Estimat]],G19,G24)","v":{"v":882,"d":"882.00 lei"}},{"$f":"SUM(D11,D19,D25,D32,CheltuieliRăcoritoare[[#Totals],[Real]],H19,H24)","v":{"v":302,"d":"302.00 lei"}}]
[]
["Introduceți cheltuielile cu locația în tabel, începând cu celula din dreapta și cheltuielile pentru băuturi răcoritoare în tabel, începând cu celula F6. Următoarele instrucțiuni se află în celula A13.","Locație","Estimat","Real",null,"Băuturi răcoritoare","Estimat","Real"]
[null,"Taxe pentru sală",{"v":500,"d":"500.00 lei"},null,null,"Alimente"]
[null,"Personalul locației",{"$nulls":3},"Băuturi",{"v":20,"d":"20.00 lei"}]
[null,"Echipament",{"$nulls":3},"Articole din material textil",null,{"v":20,"d":"20.00 lei"}]
[null,"Mese și scaune",{"$nulls":3},"Personal și recompense"]
[null,"Total",{"$f":"SUBTOTAL(109,CheltuieliLocație[Estimat])","v":{"v":500,"d":"500.00 lei"}},{"$f":"SUBTOTAL(103,CheltuieliLocație[Real])","v":{"v":0,"d":"0.00 lei"}},null,"Total",{"$f":"SUBTOTAL(109,CheltuieliRăcoritoare[Estimat])","v":{"v":20,"d":"20.00 lei"}},{"$f":"SUBTOTAL(103,CheltuieliRăcoritoare[Real])","v":{"v":1,"d":"1.00 lei"}}]
[]
["Introduceți cheltuielile pentru decorațiuni în tabel, începând cu celula din dreapta și cheltuielile pentru program în tabel, începând cu celula F13. Următoarele instrucțiuni se află în celula A21.","Decorațiuni","Estimat","Real",null,"Program","Estimat","Real"]
[null,"Flori",{"v":200,"d":"200.00 lei"},{"v":300,"d":"300.00 lei"},null,"Divertisment"]
[null,"Lumânări",{"$nulls":3},"Vorbitori",{"v":30,"d":"30.00 lei"}]
[null,"Iluminare",{"$nulls":3},"Călătorii"]
[null,"Baloane",{"$nulls":3},"Hotel"]
[null,"Consumabile din hârtie",{"$nulls":3},"Altele"]
[null,"Total",{"$f":"SUBTOTAL(109,CheltuieliDecorațiuni[Estimat])","v":{"v":200,"d":"200.00 lei"}},{"$f":"SUBTOTAL(109,CheltuieliDecorațiuni[Real])","v":{"v":300,"d":"300.00 lei"}},null,"Total",{"$f":"SUBTOTAL(109,CheltuieliProgram[Estimat])","v":{"v":30,"d":"30.00 lei"}},{"$f":"SUBTOTAL(103,CheltuieliProgram[Real])","v":{"v":0,"d":"0.00 lei"}}]
[]
["Introduceți cheltuielile pentru publicitate în tabel, începând cu celula din dreapta și cheltuielile pentru premii în tabel, începând cu celula F21. Următoarele instrucțiuni se află în celula A27.","Publicitate","Estimat","Real",null,"Premii","Estimat","Real"]
[null,"Lucrări grafice",{"$nulls":3},"Panglici/plachete/trofee"]
[null,"Fotocopiere/imprimare",{"v":20,"d":"20.00 lei"},null,null,"Cadouri",{"v":100,"d":"100.00 lei"}]
[null,"Cheltuieli cu poșta",{"$nulls":3},"Total",{"$f":"SUBTOTAL(109,CheltuieliPremii[Estimat])","v":{"v":100,"d":"100.00 lei"}},{"$f":"SUBTOTAL(103,CheltuieliPremii[Real])","v":{"v":0,"d":"0.00 lei"}}]
[null,"Total",{"$f":"SUBTOTAL(109,CheltuieliPublicitate[Estimat])","v":{"v":20,"d":"20.00 lei"}},{"$f":"SUBTOTAL(103,CheltuieliPublicitate[Real])","v":{"v":0,"d":"0.00 lei"}}]
[]
["Introduceți cheltuieli diverse în tabel, începând cu celula din dreapta.","Diverse","Estimat","Real"]
[null,"Telefon",null,{"v":13,"d":"13.00 lei"}]
[null,"Transport",{"v":12,"d":"12.00 lei"}]
[null,"Consumabile papetărie"]
[null,"Servicii fax"]
[null,"Total",{"$f":"SUBTOTAL(109,CheltuieliDiverse[Estimat])","v":{"v":12,"d":"12.00 lei"}},{"$f":"SUBTOTAL(103,CheltuieliDiverse[Real])","v":{"v":1,"d":"1.00 lei"}}]

{"sheet":"Venit","index":2,"n_rows":29,"n_cols":7,"rows_kept":29,"merged":[[0,1,0,2],[2,1,3,1]]}
["Introduceți veniturile estimate și reale pentru fiecare categorie în tabelele corespunzătoare din această foaie de lucru. Titlul acestei foi de lucru se actualizează automat în celulele de la dreapta. Subtitlul se află în celula G1. Găsiți instrucțiuni utile despre cum să utilizați această foaie de lucru în celulele din această coloană. Următoarele instrucțiuni se află în celula A3.",{"$f":"Cheltuieli!B1","v":"Buget de eveniment pentru"},null,{"$f":"Cheltuieli!D1","v":"Nume eveniment"},null,null,"VENITURI"]
[]
["Eticheta Venituri totale se află în celula de la dreapta, eticheta Estimate în celula F3 și Real în G3.","VENITURI TOTALE",{"$nulls":3},"Estimat","Real"]
["Veniturile estimate totale se calculează automat în celula F4 și veniturile totale reale în G4.",{"$nulls":4},{"$f":"SUM(Admiteri[[#Totals],[Venituri estimate]],ReclameÎnProgram[[#Totals],[Venituri estimate]],ExpozanțiȘiVânzători[[#Totals],[Venituri estimate]],VânzareArticole[[#Totals],[Venituri estimate]])","v":{"v":1936,"d":"1,936.00 lei"}},{"$f":"SUM(Admiteri[[#Totals],[Venituri reale]],ReclameÎnProgram[[#Totals],[Venituri reale]],ExpozanțiȘiVânzători[[#Totals],[Venituri reale]],VânzareArticole[[#Totals],[Venituri reale]])","v":{"v":1831,"d":"1,831.00 lei"}}]
["Eticheta Intrări se află în celula din dreapta.","INTRĂRI"]
["Introduceți numărul estimat și numărul real de intrări împreună cu prețul biletelor în tabel, începând cu celula din dreapta. Veniturile estimate și veniturile reale din intrări se calculează automat. Următoarele instrucțiuni se află în celula A11.","Nr. estimat","Nr. real","Tip","Preț","Venituri estimate","Venituri reale"]
[null,300,278,"Adulți @",{"v":5,"d":"5.00 lei"},{"$f":"B7*E7","v":{"v":1500,"d":"1,500.00 lei"}},{"$f":"C7*E7","v":{"v":1390,"d":"1,390.00 lei"}}]
[null,197,195,"Copii @",{"v":2,"d":"2.00 lei"},{"$f":"B8*E8","v":{"v":394,"d":"394.00 lei"}},{"$f":"C8*E8","v":{"v":390,"d":"390.00 lei"}}]
[null,42,51,"Altele @",{"v":1,"d":"1.00 lei"},{"$f":"B9*E9","v":{"v":42,"d":"42.00 lei"}},{"$f":"C9*E9","v":{"v":51,"d":"51.00 lei"}}]
[null,"Total",{"$nulls":3},{"$f":"SUBTOTAL(109,Admiteri[Venituri estimate])","v":{"v":1936,"d":"1,936.00 lei"}},{"$f":"SUBTOTAL(109,Admiteri[Venituri reale])","v":{"v":1831,"d":"1,831.00 lei"}}]
["Eticheta Reclame în cadrul programului se află în celula din dreapta.","RECLAME ÎN CADRUL PROGRAMULUI"]
["Introduceți numărul estimat și numărul real de reclame în cadrul programului și tarifele pentru anunțuri în tabel, începând cu celula din dreapta. Veniturile estimate și cele reale din reclame se calculează automat. Următoarele instrucțiuni se află în celula A17.","Nr. estimat","Nr. real","Tip","Preț","Venituri estimate","Venituri reale"]
[null,12,null,"Coperți @",null,{"$f":"B13*E13","v":{"v":0,"d":"0.00 lei"}},{"$f":"C13*E13","v":{"v":0,"d":"0.00 lei"}}]
[null,null,158,"Jumătăți de pagină @",null,{"$f":"B14*E14","v":{"v":0,"d":"0.00 lei"}},{"$f":"C14*E14","v":{"v":0,"d":"0.00 lei"}}]
[null,4,null,"Sferturi de pagină @",null,{"$f":"B15*E15","v":{"v":0,"d":"0.00 lei"}},{"$f":"C15*E15","v":{"v":0,"d":"0.00 lei"}}]
[null,"Total",{"$nulls":3},{"$f":"SUBTOTAL(109,ReclameÎnProgram[Venituri estimate])","v":{"v":0,"d":"0.00 lei"}},{"$f":"SUBTOTAL(109,ReclameÎnProgram[Venituri reale])","v":{"v":0,"d":"0.00 lei"}}]
["Eticheta Expozanți sau Furnizori se află în celula din dreapta.","EXPOZANȚI/FURNIZORI"]
["Introduceți numărul estimat și numărul real de expozanți și de furnizori și tarifele pentru standuri în tabel, începând cu celula din dreapta. Veniturile estimate și cele reale se calculează automat. Următoarele instrucțiuni se află în celula A23.","Nr. estimat","Nr. real","Tip","Preț","Venituri estimate","Venituri reale"]
[null,23,null,"Standuri mari @",null,{"$f":"B19*E19","v":{"v":0,"d":"0.00 lei"}},{"$f":"C19*E19","v":{"v":0,"d":"0.00 lei"}}]
[null,354,null,"Standuri medii @",null,{"$f":"B20*E20","v":{"v":0,"d":"0.00 lei"}},{"$f":"C20*E20","v":{"v":0,"d":"0.00 lei"}}]
[null,56,null,"Standuri mici @",null,{"$f":"B21*E21","v":{"v":0,"d":"0.00 lei"}},{"$f":"C21*E21","v":{"v":0,"d":"0.00 lei"}}]
[null,"Total",{"$nulls":3},{"$f":"SUBTOTAL(109,ExpozanțiȘiVânzători[Venituri estimate])","v":{"v":0,"d":"0.00 lei"}},{"$f":"SUBTOTAL(109,ExpozanțiȘiVânzători[Venituri reale])","v":{"v":0,"d":"0.00 lei"}}]
["Eticheta Vânzare de articole se află în celula din dreapta.","VÂNZARE DE ARTICOLE"]
["Introduceți numărul estimat și numărul real de articole vândute și prețurile articolelor în tabel, începând cu celula din dreapta. Veniturile estimate și cele reale se calculează automat.","Nr. estimat","Nr. real","Tip","Preț","Venituri estimate","Venituri reale"]
[{"$nulls":3},"Articole @",null,{"$f":"B25*E25","v":{"v":0,"d":"0.00 lei"}},{"$f":"C25*E25","v":{"v":0,"d":"0.00 lei"}}]
[null,123,null,"Articole @",null,{"$f":"B26*E26","v":{"v":0,"d":"0.00 lei"}},{"$f":"C26*E26","v":{"v":0,"d":"0.00 lei"}}]
[{"$nulls":3},"Articole @",null,{"$f":"B27*E27","v":{"v":0,"d":"0.00 lei"}},{"$f":"C27*E27","v":{"v":0,"d":"0.00 lei"}}]
[null,13,null,"Articole @",null,{"$f":"B28*E28","v":{"v":0,"d":"0.00 lei"}},{"$f":"C28*E28","v":{"v":0,"d":"0.00 lei"}}]
[null,"Total",{"$nulls":3},{"$f":"SUBTOTAL(109,VânzareArticole[Venituri estimate])","v":{"v":0,"d":"0.00 lei"}},{"$f":"SUBTOTAL(109,VânzareArticole[Venituri reale])","v":{"v":0,"d":"0.00 lei"}}]

{"sheet":"Rezumat profit și pierderi","index":3,"n_rows":8,"n_cols":7,"rows_kept":8,"merged":[[0,1,0,2]]}
["Rezumatul profiturilor și pierderilor și diagrama care arată veniturile și cheltuielile totale se actualizează automat în această foaie de lucru. Titlul acestei foi de lucru se actualizează automat în celulele de la dreapta. Subtitlul se află în celula G1 și G2. Găsiți instrucțiuni utile despre cum să utilizați această foaie de lucru în celulele din această coloană. Următoarele instrucțiuni se află în celula A3.",{"$f":"Cheltuieli!B1","v":"Buget de eveniment pentru"},null,{"$f":"Cheltuieli!D1","v":"Nume eveniment"},null,null,"PROFIT "]
[{"$nulls":6},"Rezumat pierderi"]
["Diagrama cu bare care compară veniturile și cheltuielile estimate și pe cele reale se află în celula E3.",{"$nulls":3},"Diagrama cu bare care afișează o comparație între veniturile și cheltuielile estimate și cele reale se află în această celulă."]
["Tabelul Rezumat care începe de la celula din dreapta se actualizează automat. Următoarele instrucțiuni se află în celula A8."," Total","Estimat","Real"]
[null,"Venituri totale",{"$f":"Venit!F10","v":{"v":1936,"d":"1,936.00 lei"}},{"$f":"Venit!F4","v":{"v":1936,"d":"1,936.00 lei"}}]
[null,"Total cheltuieli",{"$f":"Cheltuieli!G4","v":{"v":882,"d":"882.00 lei"}},{"$f":"Cheltuieli!H4","v":{"v":302,"d":"302.00 lei"}}]
[]
["Profitul sau pierderea totală estimată se calculează automat în celula C8 și profitul sau pierderea totală reală în celula D8.","Profit total\n(sau pierderi)",{"$f":"C5-C6","v":{"v":1054,"d":"1,054.00 lei"}},{"$f":"D5-D6","v":{"v":1634,"d":"1,634.00 lei"}}]